fUST/lending_fUST_20240218
["ID","MTS","AMOUNT","RATE_DAILY","PERIOD"]
[314334978,1708192244314,-407.4416141,0.00030411,2]
[314334979,1708192244324,-153.0,0.00030411,2]
[314334980,1708192244334,-1938.02221768,0.00030449,2]
[314334981,1708192244343,-511.51029386,0.00030466,2]
[314334982,1708192244355,-111.29955794,0.00030466,2]
[314334983,1708192244366,-1280.88,0.00030684,2]
[314334984,1708192244376,-366.70428588,0.00030684,2]
[314335019,1708192457536,154.87609812,0.000176,2]
[314335080,1708193432561,-189.97024141,0.00024077,2]
[314335081,1708193432571,-404.02792007,0.00024078,2]
[314335082,1708193432581,-392.45085558,0.00024079,2]
[314335083,1708193432590,-286.39335264,0.0002408,2]
[314335084,1708193432599,-616.51743471,0.00024117,2]
[314335085,1708193432608,-1453.48924926,0.00024117,2]
[314335086,1708193432617,-824.98607197,0.00024117,2]
[314335087,1708193432626,-311.151105,0.0002453,2]
[314335088,1708193432636,-8026.20031473,0.0002652,3]
[314335097,1708193438534,-727.43026703,0.0002652,3]
[314335099,1708193438543,-296.32973297,0.0002652,3]
[314335104,1708193438589,-1541.9326892,0.0002652,3]
[314335105,1708193438598,-500.0,0.00027397,2]
[314335107,1708193438607,-500.0,0.00027397,2]
[314335109,1708193438617,-500.0,0.00027397,2]
[314335111,1708193438627,-500.0,0.00027397,2]
[314335112,1708193438636,-500.0,0.00027397,2]
[314335114,1708193438645,-500.0,0.00027397,2]
[314335116,1708193438654,-500.0,0.00027397,2]
[314335118,1708193438663,-631.12,0.00027397,2]
[314335120,1708193438672,-658.96,0.00027397,2]
[314335121,1708193438681,-500.0,0.00027397,2]
[314335123,1708193438690,-500.0,0.00027397,2]
[314335125,1708193438699,-500.0,0.00027397,2]
[314335127,1708193438709,-500.0,0.00027397,2]
[314335129,1708193438718,-500.0,0.00027397,2]
[314335131,1708193438727,-504.47691264,0.00027397,2]
[314335133,1708193438736,-1203.21,0.00027397,2]
[314335135,1708193438746,-351.34724734,0.00027397,2]
[314335136,1708193438755,-1281.79,0.00027397,2]
[314335138,1708193438765,-500.0,0.00027397,2]
[314335140,1708193438775,-500.0,0.00027397,2]
[314335141,1708193438784,-500.0,0.00027397,2]
[314335143,1708193438794,-500.0,0.00027397,2]
[314335145,1708193438803,-500.0,0.00027397,2]
[314335147,1708193438813,-5897.5,0.00027397,2]
[314335148,1708193438822,-500.0,0.00027397,2]
[314335150,1708193438836,-868.37,0.00027397,2]
[314335152,1708193438846,-500.0,0.00027397,2]
[314335154,1708193438857,-656.39,0.00027397,2]
[314335156,1708193438867,-5419.59,0.00027397,2]
[314335158,1708193438876,-1101.27,0.00027397,2]
[314335159,1708193438886,-500.0,0.00027397,2]
[314335161,1708193438895,-974.06148719,0.00027397,2]
[314335163,1708193438906,-25.93851281,0.00027397,2]
[314335165,1708193438916,-500.0,0.00027397,2]
[314335167,1708193438925,-409.31389661,0.00027397,2]
[314335169,1708193438933,-500.0,0.00027397,2]
[314335171,1708193438943,-221.45173241,0.00027397,2]
[314335173,1708193438951,-569.02,0.00027397,2]
[314335174,1708193438961,-666.09,0.00027397,2]
[314335176,1708193438970,-3242.11,0.00027397,2]
[314335178,1708193438979,-500.0,0.00027397,2]
[314335180,1708193438988,-4096.34,0.00027397,2]
[314335182,1708193438997,-500.0,0.00027397,2]
[314335183,1708193439005,-966.07,0.00027397,2]
[314335185,1708193439014,-743.92,0.00027397,2]
[314335187,1708193439023,-500.0,0.00027397,2]
[314335189,1708193439032,-500.0,0.00027397,2]
[314335191,1708193439041,-4077.81,0.00027397,2]
[314335192,1708193439050,-500.0,0.00027397,2]
[314335194,1708193439059,-500.0,0.00027397,2]
[314335196,1708193439069,-909.22,0.00027619,3]
[314335198,1708193439078,-1096.18,0.00027619,3]
[314335200,1708193439091,-1711.5,0.00027619,3]
[314335202,1708193439100,-1426.25,0.00027619,3]
[314335203,1708193439110,-1188.54,0.00027619,3]
[314335205,1708193439119,-578.91,0.00027629,2]
[314335207,1708193439128,-3999.83,0.00027629,2]
[314335209,1708193439137,-3394.46,0.00027629,2]
[314335211,1708193439146,-500.0,0.00027629,2]
[314335213,1708193439156,-536.38,0.00027629,2]
[314335214,1708193439164,-500.0,0.00027671,2]
[314335216,1708193439174,-500.0,0.00027671,2]
[314335218,1708193439189,-500.0,0.00027671,2]
[314335220,1708193439198,-500.0,0.00027671,2]
[314335222,1708193439207,-631.12,0.00027671,2]
[314335224,1708193439217,-658.96,0.00027671,2]
[314335226,1708193439227,-500.0,0.00027671,2]
[314335227,1708193439237,-500.0,0.00027671,2]
[314335229,1708193439247,-500.0,0.00027671,2]
[314335231,1708193439258,-500.0,0.00027671,2]
[314335233,1708193439267,-1203.21,0.00027671,2]
[314335235,1708193439277,-1281.79,0.00027671,2]
[314335237,1708193439286,-500.0,0.00027671,2]
[314335239,1708193439295,-500.0,0.00027671,2]
[314335240,1708193439304,-500.0,0.00027671,2]
[314335242,1708193439313,-500.0,0.00027671,2]
[314335244,1708193439323,-5897.5,0.00027671,2]
[314335246,1708193439332,-500.0,0.00027671,2]
[314335248,1708193439341,-868.37,0.00027671,2]
[314335249,1708193439351,-500.0,0.00027671,2]
[314335251,1708193439360,-656.39,0.00027671,2]
[314335253,1708193439370,-5419.59,0.00027671,2]
[314335255,1708193439379,-1101.27,0.00027671,2]
[314335257,1708193439388,-500.0,0.00027671,2]
[314335259,1708193439397,-500.0,0.00027671,2]
[314335260,1708193439406,-500.0,0.00027671,2]
[314335262,1708193439415,-569.02,0.00027671,2]
[314335264,1708193439424,-666.09,0.00027671,2]
[314335266,1708193439432,-3242.11,0.00027671,2]
[314335268,1708193439441,-500.0,0.00027671,2]
[314335270,1708193439450,-4096.34,0.00027671,2]
[314335271,1708193439459,-500.0,0.00027671,2]
[314335273,1708193439468,-966.07,0.00027671,2]
[314335275,1708193439477,-743.92,0.00027671,2]
[314335277,1708193439486,-500.0,0.00027671,2]
[314335279,1708193439495,-500.0,0.00027671,2]
[314335281,1708193439504,-4077.81,0.00027671,2]
[314335282,1708193439513,-500.0,0.00027671,2]
[314335284,1708193439522,-500.0,0.00027671,2]
[314335286,1708193439531,-475.57873951,0.000279,2]
[314335288,1708193439541,-321.58043892,0.00027902,2]
[314335290,1708193439550,-578.91,0.00027903,2]
[314335292,1708193439559,-3999.83,0.00027903,2]
[314335294,1708193439567,-3394.46,0.00027903,2]
[314335295,1708193439576,-500.0,0.00027903,2]
[314335297,1708193439586,-536.38,0.00027903,2]
[314335299,1708193439596,-500.0,0.00027945,2]
[314335301,1708193439605,-500.0,0.00027945,2]
[314335303,1708193439614,-500.0,0.00027945,2]
[314335305,1708193439624,-500.0,0.00027945,2]
[314335307,1708193439632,-631.12,0.00027945,2]
[314335308,1708193439641,-658.96,0.00027945,2]
[314335310,1708193439650,-500.0,0.00027945,2]
[314335312,1708193439659,-500.0,0.00027945,2]
[314335314,1708193439668,-500.0,0.00027945,2]
[314335316,1708193439678,-539.16,0.00027945,2]
[314335317,1708193439687,-1203.21,0.00027945,2]
[314335319,1708193439697,-1281.79,0.00027945,2]
[314335321,1708193439706,-500.0,0.00027945,2]
[314335323,1708193439715,-500.0,0.00027945,2]
[314335325,1708193439724,-500.0,0.00027945,2]
[314335327,1708193439733,-493.00244291,0.00027945,2]
[314335328,1708193439742,-5897.5,0.00027945,2]
[314335330,1708193439751,-868.37,0.00027945,2]
[314335332,1708193439760,-500.0,0.00027945,2]
[314335334,1708193439770,-656.39,0.00027945,2]
[314335336,1708193439779,-5419.59,0.00027945,2]
[314335338,1708193439787,-1101.27,0.00027945,2]
[314335339,1708193439796,-500.0,0.00027945,2]
[314335341,1708193439805,-500.0,0.00027945,2]
[314335343,1708193439814,-500.0,0.00027945,2]
[314335345,1708193439823,-569.02,0.00027945,2]
[314335347,1708193439832,-666.09,0.00027945,2]
[314335348,1708193439843,-3242.11,0.00027945,2]
[314335350,1708193439853,-500.0,0.00027945,2]
[314335352,1708193439862,-4096.34,0.00027945,2]
[314335354,1708193439872,-500.0,0.00027945,2]
[314335356,1708193439880,-966.07,0.00027945,2]
[314335358,1708193439889,-743.92,0.00027945,2]
[314335359,1708193439899,-500.0,0.00027945,2]
[314335361,1708193439908,-500.0,0.00027945,2]
[314335363,1708193439917,-4077.81,0.00027945,2]
[314335365,1708193439926,-500.0,0.00027945,2]
[314335367,1708193439935,-500.0,0.00027945,2]
[314335369,1708193439944,-155.00930056,0.00028,2]
[314335378,1708193440032,-578.91,0.00028177,2]
[314335380,1708193440042,-3999.83,0.00028177,2]
[314335382,1708193440052,-3394.46,0.00028177,2]
[314335384,1708193440060,-500.0,0.00028177,2]
[314335385,1708193440070,-536.38,0.00028177,2]
[314335387,1708193440080,-500.0,0.00028219,2]
[314335389,1708193440089,-500.0,0.00028219,2]
[314335391,1708193440098,-500.0,0.00028219,2]
[314335393,1708193440107,-500.0,0.00028219,2]
[314335395,1708193440117,-631.12,0.00028219,2]
[314335396,1708193440125,-658.96,0.00028219,2]
[314335398,1708193440135,-500.0,0.00028219,2]
[314335400,1708193440144,-500.0,0.00028219,2]
[314335402,1708193440153,-500.0,0.00028219,2]
[314335404,1708193440162,-1203.21,0.00028219,2]
[314335406,1708193440172,-1281.79,0.00028219,2]
[314335408,1708193440184,-500.0,0.00028219,2]
[314335410,1708193440194,-500.0,0.00028219,2]
[314335412,1708193440203,-500.0,0.00028219,2]
[314335414,1708193440211,-5897.5,0.00028219,2]
[314335415,1708193440221,-868.37,0.00028219,2]
[314335416,1708193440229,-500.0,0.00028219,2]
[314335417,1708193440238,-656.39,0.00028219,2]
[314335418,1708193440248,-5419.59,0.00028219,2]
[314335419,1708193440257,-1101.27,0.00028219,2]
[314335420,1708193440267,-500.0,0.00028219,2]
[314335421,1708193440276,-500.0,0.00028219,2]
[314335422,1708193440285,-500.0,0.00028219,2]
[314335423,1708193440294,-569.02,0.00028219,2]
[314335424,1708193440303,-666.09,0.00028219,2]
[314335425,1708193440312,-3242.11,0.00028219,2]
[314335426,1708193440321,-500.0,0.00028219,2]
[314335427,1708193440330,-4096.34,0.00028219,2]
[314335428,1708193440339,-500.0,0.00028219,2]
[314335429,1708193440349,-966.07,0.00028219,2]
[314335430,1708193440358,-743.92,0.00028219,2]
[314335431,1708193440367,-424.4656152,0.00028219,2]
[314335432,1708193440376,-223.7581717,0.00028219,2]
[314335433,1708193440385,-4077.81,0.00028219,2]
[314335434,1708193440394,-500.0,0.00028219,2]
[314335435,1708193440402,-578.91,0.00028451,2]
[314335436,1708193440411,-3999.83,0.00028451,2]
[314335437,1708193440420,-3394.46,0.00028451,2]
[314335438,1708193440429,-500.0,0.00028451,2]
[314335439,1708193440438,-536.38,0.00028451,2]
[314335440,1708193440447,-500.0,0.00028493,2]
[314335441,1708193440457,-500.0,0.00028493,2]
[314335442,1708193440466,-500.0,0.00028493,2]
[314335443,1708193440475,-631.12,0.00028493,2]
[314335445,1708193440483,-658.96,0.00028493,2]
[314335446,1708193440492,-444.8,0.00028493,2]
[314335448,1708193440501,-500.0,0.00028493,2]
[314335450,1708193440512,-500.0,0.00028493,2]
[314335452,1708193440521,-1203.21,0.00028493,2]
[314335454,1708193440530,-1281.79,0.00028493,2]
[314335456,1708193440539,-500.0,0.00028493,2]
[314335458,1708193440548,-500.0,0.00028493,2]
[314335460,1708193440557,-5897.5,0.00028493,2]
[314335462,1708193440566,-868.37,0.00028493,2]
[314335464,1708193440576,-500.0,0.00028493,2]
[314335466,1708193440587,-656.39,0.00028493,2]
[314335468,1708193440596,-5419.59,0.00028493,2]
[314335470,1708193440605,-1101.27,0.00028493,2]
[314335472,1708193440614,-500.0,0.00028493,2]
[314335474,1708193440623,-500.0,0.00028493,2]
[314335476,1708193440632,-500.0,0.00028493,2]
[314335478,1708193440640,-569.02,0.00028493,2]
[314335480,1708193440649,-666.09,0.00028493,2]
[314335483,1708193440658,-3242.11,0.00028493,2]
[314335486,1708193440667,-500.0,0.00028493,2]
[314335488,1708193440677,-4096.34,0.00028493,2]
[314335490,1708193440686,-500.0,0.00028493,2]
[314335492,1708193440694,-966.07,0.00028493,2]
[314335494,1708193440704,-743.92,0.00028493,2]
[314335496,1708193440715,-4077.81,0.00028493,2]
[314335498,1708193440723,-500.0,0.00028493,2]
[314335500,1708193440732,-578.91,0.00028725,2]
[314335502,1708193440741,-3999.83,0.00028725,2]
[314335503,1708193440750,-3394.46,0.00028725,2]
[314335505,1708193440761,-500.0,0.00028725,2]
[314335508,1708193440770,-536.38,0.00028725,2]
[314335510,1708193440779,-500.0,0.00028767,2]
[314335512,1708193440788,-500.0,0.00028767,2]
[314335514,1708193440797,-500.0,0.00028767,2]
[314335516,1708193440806,-631.12,0.00028767,2]
[314335517,1708193440815,-658.96,0.00028767,2]
[314335520,1708193440825,-500.0,0.00028767,2]
[314335522,1708193440835,-500.0,0.00028767,2]
[314335523,1708193440845,-1203.21,0.00028767,2]
[314335525,1708193440855,-1281.79,0.00028767,2]
[314335527,1708193440864,-500.0,0.00028767,2]
[314335529,1708193440873,-500.0,0.00028767,2]
[314335532,1708193440887,-5897.5,0.00028767,2]
[314335535,1708193440900,-868.37,0.00028767,2]
[314335537,1708193440914,-500.0,0.00028767,2]
[314335539,1708193440927,-656.39,0.00028767,2]
[314335542,1708193440938,-5419.59,0.00028767,2]
[314335544,1708193440949,-1101.27,0.00028767,2]
[314335546,1708193440962,-500.0,0.00028767,2]
[314335549,1708193440974,-500.0,0.00028767,2]
[314335551,1708193440985,-500.0,0.00028767,2]
[314335553,1708193440998,-569.02,0.00028767,2]
[314335556,1708193441010,-666.09,0.00028767,2]
[314335558,1708193441022,-3242.11,0.00028767,2]
[314335560,1708193441034,-500.0,0.00028767,2]
[314335562,1708193441045,-500.0,0.00028767,2]
[314335565,1708193441056,-966.07,0.00028767,2]
[314335567,1708193441067,-743.92,0.00028767,2]
[314335569,1708193441078,-4077.81,0.00028767,2]
[314335571,1708193441090,-500.0,0.00028767,2]
[314335573,1708193441100,-1373.27271463,0.00028837,7]
[314335576,1708193441111,-578.91,0.00028999,2]
[314335578,1708193441123,-3999.83,0.00028999,2]
[314335580,1708193441134,-3394.46,0.00028999,2]
[314335582,1708193441146,-500.0,0.00028999,2]
[314335584,1708193441157,-536.38,0.00028999,2]
[314335587,1708193441168,-1974.32885604,0.00029,7]
[314335589,1708193441182,-422.16862063,0.00029,2]
[314335591,1708193441192,-500.0,0.00029041,2]
[314335593,1708193441205,-500.0,0.00029041,2]
[314335596,1708193441217,-500.0,0.00029041,2]
[314335598,1708193441229,-631.12,0.00029041,2]
[314335600,1708193441241,-658.96,0.00029041,2]
[314335602,1708193441252,-500.0,0.00029041,2]
[314335605,1708193441263,-500.0,0.00029041,2]
[314335607,1708193441275,-1203.21,0.00029041,2]
[314335609,1708193441286,-1281.79,0.00029041,2]
[314335611,1708193441298,-500.0,0.00029041,2]
[314335614,1708193441310,-5897.5,0.00029041,2]
[314335616,1708193441323,-868.37,0.00029041,2]
[314335618,1708193441335,-500.0,0.00029041,2]
[314335621,1708193441349,-656.39,0.00029041,2]
[314335623,1708193441361,-5419.59,0.00029041,2]
[314335626,1708193441374,-1101.27,0.00029041,2]
[314335628,1708193441385,-266.85349977,0.00029041,2]
[314335630,1708193441395,-500.0,0.00029041,2]
[314335632,1708193441404,-500.0,0.00029041,2]
[314335634,1708193441414,-569.02,0.00029041,2]
[314335636,1708193441425,-666.09,0.00029041,2]
[314335638,1708193441437,-3242.11,0.00029041,2]
[314335641,1708193441449,-500.0,0.00029041,2]
[314335643,1708193441459,-500.0,0.00029041,2]
[314335645,1708193441469,-966.07,0.00029041,2]
[314335647,1708193441482,-743.92,0.00029041,2]
[314335649,1708193441492,-4077.81,0.00029041,2]
[314335652,1708193441502,-500.0,0.00029041,2]
[314335654,1708193441512,-578.91,0.00029273,2]
[314335656,1708193441522,-3999.83,0.00029273,2]
[314335658,1708193441531,-3394.46,0.00029273,2]
[314335660,1708193441542,-500.0,0.00029273,2]
[314335662,1708193441552,-536.38,0.00029273,2]
[314335664,1708193441563,-1786.56049038,0.000293,2]
[314335666,1708193441574,-500.0,0.00029315,2]
[314335668,1708193441585,-500.0,0.00029315,2]
[314335671,1708193441595,-500.0,0.00029315,2]
[314335673,1708193441606,-631.12,0.00029315,2]
[314335675,1708193441617,-658.96,0.00029315,2]
[314335677,1708193441627,-500.0,0.00029315,2]
[314335679,1708193441637,-500.0,0.00029315,2]
[314335681,1708193441648,-1203.21,0.00029315,2]
[314335683,1708193441659,-1281.79,0.00029315,2]
[314335686,1708193441670,-320.49977444,0.00029315,2]
[314335688,1708193441680,-5897.5,0.00029315,2]
[314335690,1708193441691,-868.37,0.00029315,2]
[314335692,1708193441701,-500.0,0.00029315,2]
[314335694,1708193441711,-656.39,0.00029315,2]
[314335696,1708193441722,-5419.59,0.00029315,2]
[314335699,1708193441733,-1101.27,0.00029315,2]
[314335701,1708193441743,-500.0,0.00029315,2]
[314335703,1708193441753,-500.0,0.00029315,2]
[314335705,1708193441763,-569.02,0.00029315,2]
[314335707,1708193441774,-666.09,0.00029315,2]
[314335709,1708193441785,-3242.11,0.00029315,2]
[314335711,1708193441795,-606.19323371,0.00029315,2]
[314335714,1708193441806,-500.0,0.00029315,2]
[314335716,1708193441816,-966.07,0.00029315,2]
[314335718,1708193441826,-743.92,0.00029315,2]
[314335720,1708193441837,-4077.81,0.00029315,2]
[314335722,1708193441850,-500.0,0.00029315,2]
[314335724,1708193441860,-578.91,0.00029547,2]
[314335726,1708193441871,-3999.83,0.00029547,2]
[314335729,1708193441881,-3394.46,0.00029547,2]
[314335731,1708193441891,-500.0,0.00029547,2]
[314335743,1708193441995,-536.38,0.00029547,2]
[314335746,1708193442008,-500.0,0.00029589,2]
[314335748,1708193442018,-500.0,0.00029589,2]
[314335749,1708193442027,-500.0,0.00029589,2]
[314335752,1708193442036,-631.12,0.00029589,2]
[314335754,1708193442046,-658.96,0.00029589,2]
[314335755,1708193442056,-500.0,0.00029589,2]
[314335757,1708193442065,-500.0,0.00029589,2]
[314335759,1708193442074,-1203.21,0.00029589,2]
[314335762,1708193442084,-1281.79,0.00029589,2]
[314335763,1708193442093,-5897.5,0.00029589,2]
[314335765,1708193442102,-868.37,0.00029589,2]
[314335767,1708193442110,-500.0,0.00029589,2]
[314335769,1708193442119,-656.39,0.00029589,2]
[314335771,1708193442128,-5419.59,0.00029589,2]
[314335773,1708193442138,-1101.27,0.00029589,2]
[314335775,1708193442147,-500.0,0.00029589,2]
[314335777,1708193442156,-500.0,0.00029589,2]
[314335779,1708193442165,-569.02,0.00029589,2]
[314335781,1708193442174,-666.09,0.00029589,2]
[314335783,1708193442187,-3242.11,0.00029589,2]
[314335785,1708193442196,-500.0,0.00029589,2]
[314335788,1708193442206,-966.07,0.00029589,2]
[314335789,1708193442215,-743.92,0.00029589,2]
[314335791,1708193442225,-4077.81,0.00029589,2]
[314335794,1708193442234,-500.0,0.00029589,2]
[314335795,1708193442243,-153.0,0.00029589,2]
[314335797,1708193442253,-300.0,0.00029642,2]
[314335799,1708193442263,-578.91,0.00029821,2]
[314335802,1708193442275,-3999.83,0.00029821,2]
[314335804,1708193442284,-3394.46,0.00029821,2]
[314335805,1708193442293,-500.0,0.00029821,2]
[314335807,1708193442302,-536.38,0.00029821,2]
[314335809,1708193442312,-160.24275126,0.00029863,3]
[314335811,1708193442320,-187.57779818,0.00029863,7]
[314335813,1708193442329,-590.87006427,0.00029863,7]
[314335815,1708193442338,-1000.0,0.00029863,7]
[314335817,1708193442348,-1028.36591105,0.00029863,7]
[314335819,1708193442357,-500.0,0.00029863,2]
[314335821,1708193442366,-500.0,0.00029863,2]
[314335823,1708193442375,-500.0,0.00029863,2]
[314335825,1708193442384,-631.12,0.00029863,2]
[314335827,1708193442393,-658.96,0.00029863,2]
[314335829,1708193442401,-1411.84348036,0.00029863,7]
[314335831,1708193442410,-500.0,0.00029863,2]
[314335833,1708193442419,-500.0,0.00029863,2]
[314335835,1708193442430,-1203.21,0.00029863,2]
[314335837,1708193442439,-1281.79,0.00029863,2]
[314335839,1708193442448,-301.49185785,0.00029863,7]
[314335841,1708193442457,-5897.5,0.00029863,2]
[314335843,1708193442466,-868.37,0.00029863,2]
[314335845,1708193442478,-500.0,0.00029863,2]
[314335847,1708193442487,-656.39,0.00029863,2]
[314335849,1708193442496,-5419.59,0.00029863,2]
[314335851,1708193442505,-1101.27,0.00029863,2]
[314335853,1708193442515,-500.0,0.00029863,2]
[314335855,1708193442524,-500.0,0.00029863,2]
[314335857,1708193442532,-569.02,0.00029863,2]
[314335859,1708193442541,-666.09,0.00029863,2]
[314335861,1708193442550,-3242.11,0.00029863,2]
[314335863,1708193442558,-500.0,0.00029863,2]
[314335865,1708193442567,-966.07,0.00029863,2]
[314335867,1708193442576,-743.92,0.00029863,2]
[314335869,1708193442585,-4077.81,0.00029863,2]
[314335871,1708193442593,-500.0,0.00029863,2]
[314335873,1708193442602,-152.1625319,0.000299,2]
[314335875,1708193442611,-58211.57842157,0.000299,2]
[314335956,1708193443572,-321.58043892,0.00027397,2]
[314335975,1708193446537,-178.41956108,0.00027397,2]
[314335976,1708193446547,-500.0,0.00027671,2]
[314335977,1708193446556,-500.0,0.00027945,2]
[314335978,1708193446565,-500.0,0.00028219,2]
[314335979,1708193446575,-500.0,0.00028493,2]
[314335980,1708193446584,-500.0,0.00028767,2]
[314335981,1708193446595,-500.0,0.00029041,2]
[314335982,1708193446604,-500.0,0.00029315,2]
[314335983,1708193446613,-500.0,0.00029589,2]
[314335984,1708193446622,-500.0,0.00029863,2]
[314335985,1708193446631,-7218.20691007,0.000299,2]
[314335986,1708193446660,-3978.37373011,0.000299,2]
[314335987,1708193446669,-343.17626989,0.000299,2]
[314335988,1708193446680,-1000.0,0.000299,2]
[314335989,1708193550750,150.0,0.00030948,120]
[314336128,1708194419141,-154.9690062,0.00024108,2]
[314336129,1708194419163,-261.63390372,0.00024108,2]
[314336130,1708194419184,-404.02792007,0.00024109,2]
[314336131,1708194419205,-286.39335264,0.0002411,2]
[314336132,1708194419227,-1775.68356085,0.00024115,2]
[314336133,1708194419252,-4917.236366,0.00024136,2]
[314336134,1708194419273,-166.666666,0.00024658,2]
[314336135,1708194419293,-311.151105,0.00024773,2]
[314336136,1708194419317,-813.03876524,0.00026846,3]
[314336189,1708194631932,-160.410178,0.00025515,2]
[314336191,1708194631941,-235.594279,0.00025515,2]
[314336193,1708194631951,-160.410178,0.00025834,2]
[314336195,1708194631960,-235.594279,0.00025834,2]
[314336197,1708194631969,-235.594279,0.00026153,2]
[314336199,1708194631978,-160.410178,0.00026153,2]
[314336201,1708194631987,-235.594279,0.00026472,2]
[314336202,1708194631996,-160.410178,0.00026472,2]
[314336204,1708194632006,-218.0282531,0.0002679,2]
[314336206,1708194632016,-154.9690062,0.0002679,2]
[314336209,1708194632026,-404.02792007,0.0002679,2]
[314336210,1708194632035,-235.594279,0.00026791,2]
[314336212,1708194632044,-160.410178,0.00026791,2]
[314336214,1708194632053,-1556.96137895,0.00026846,3]
[314336216,1708194632062,-3717.10441184,0.00026846,3]
[314336218,1708194632071,-200.0,0.00026873,2]
[314336220,1708194632080,-200.0,0.00027373,2]
[314336222,1708194632090,-567.3,0.00027397,2]
[314336224,1708194632099,-557.12,0.00027397,2]
[314336226,1708194632109,-150.0,0.000275,2]
[314336228,1708194632118,-200.0,0.00027573,2]
[314336230,1708194632127,-286.39335264,0.00027667,2]
[314336232,1708194632136,-571.95,0.00027669,2]
[314336234,1708194632147,-500.0,0.00027669,2]
[314336236,1708194632156,-3638.05,0.00027669,2]
[314336238,1708194632166,-1005.03205119,0.00027669,2]
[314336279,1708194639878,-4187.29794881,0.00027669,2]
[314336281,1708194639888,-85.0020995,0.00027669,2]
[314336284,1708194639900,-966.5179005,0.00027669,2]
[314336286,1708194639911,-500.0,0.00027669,2]
[314336288,1708194639920,-500.0,0.00027669,2]
[314336290,1708194639930,-500.0,0.00027669,2]
[314336292,1708194639939,-500.0,0.00027669,2]
[314336294,1708194639948,-917.73,0.00027669,2]
[314336296,1708194639956,-500.0,0.00027669,2]
[314336297,1708194639965,-685.73808822,0.00027669,2]
[314336301,1708194639987,-86.35191178,0.00027669,2]
[314336303,1708194639996,-2701.75,0.00027669,2]
[314336305,1708194640005,-546.99,0.00027669,2]
[314336307,1708194640015,-3552.4,0.00027669,2]
[314336309,1708194640024,-4818.7,0.00027669,2]
[314336311,1708194640033,-805.06,0.00027669,2]
[314336313,1708194640042,-500.0,0.00027669,2]
[314336315,1708194640051,-663.69,0.00027669,2]
[314336317,1708194640060,-500.0,0.00027669,2]
[314336319,1708194640069,-590.21,0.00027669,2]
[314336321,1708194640078,-500.27,0.00027669,2]
[314336323,1708194640087,-500.0,0.00027669,2]
[314336325,1708194640096,-500.0,0.0002767,2]
[314336327,1708194640105,-266.85349977,0.0002767,2]
[314336329,1708194640114,-1014.71,0.0002767,2]
[314336330,1708194640123,-500.0,0.0002767,2]
[314336333,1708194640132,-500.0,0.0002767,2]
[314336334,1708194640141,-500.0,0.0002767,2]
[314336336,1708194640150,-516.61,0.0002767,2]
[314336338,1708194640160,-500.0,0.0002767,2]
[314336340,1708194640169,-3541.77,0.0002767,2]
[314336341,1708194640178,-2996.24,0.0002767,2]
[314336343,1708194640187,-500.0,0.0002767,2]
[314336345,1708194640196,-500.0,0.0002767,2]